[Event "Early-Titled-Tuesday-Blitz-May-14-2024"]
[Site "Chess.com"]
[Date "2024.05.14"]
[Round "10"]
[White "Artemiki"]
[Black "Matibar"]
[Result "0-1"]
[WhiteElo "2618"]
[BlackElo "2780"]
[TimeControl "180+1"]
[EndTime "9:58:46 PDT"]
[Termination "Matibar won on time"]

1. e4 {[%clk 0:03:00.9]} 1... Nf6 {[%clk 0:02:57.1]} 2. e5 {[%clk 0:03:00.1]}
2... Nd5 {[%clk 0:02:53.8]} 3. d4 {[%clk 0:03:00.3]} 3... d6 {[%clk 0:02:54.1]}
4. c4 {[%clk 0:03:00.6]} 4... Nb6 {[%clk 0:02:53.4]} 5. f4 {[%clk 0:02:59.5]}
5... Bf5 {[%clk 0:02:51.7]} 6. Nf3 {[%clk 0:02:55.9]} 6... e6 {[%clk 0:02:51.7]}
7. Nc3 {[%clk 0:02:53]} 7... Nc6 {[%clk 0:02:48]} 8. Be3 {[%clk 0:02:50.2]} 8...
d5 {[%clk 0:02:45.5]} 9. c5 {[%clk 0:02:43.2]} 9... Nc4 {[%clk 0:02:45.3]} 10.
Bc1 {[%clk 0:02:13.1]} 10... f6 {[%clk 0:01:39.9]} 11. b3 {[%clk 0:02:05.6]}
11... fxe5 {[%clk 0:01:37.2]} 12. bxc4 {[%clk 0:01:44.3]} 12... exd4 {[%clk
0:01:35.9]} 13. Nxd4 {[%clk 0:01:34.8]} 13... Qf6 {[%clk 0:01:35.7]} 14. Nxf5
{[%clk 0:01:03.3]} 14... Qxc3+ {[%clk 0:01:35.2]} 15. Bd2 {[%clk 0:01:03.6]}
15... Qf6 {[%clk 0:01:33.5]} 16. cxd5 {[%clk 0:01:02.4]} 16... exd5 {[%clk
0:01:33.2]} 17. Ne3 {[%clk 0:01:00.7]} 17... O-O-O {[%clk 0:01:31.1]} 18. Bb5
{[%clk 0:00:50.7]} 18... Nd4 {[%clk 0:01:28.4]} 19. Bd3 {[%clk 0:00:46.7]} 19...
Bxc5 {[%clk 0:01:23.4]} 20. Rc1 {[%clk 0:00:34.9]} 20... Bb6 {[%clk 0:01:21.6]}
21. a4 {[%clk 0:00:34.4]} 21... Qxf4 {[%clk 0:01:03.1]} 22. Rf1 {[%clk 0:00:16]}
22... Qh4+ {[%clk 0:00:52.7]} 23. g3 {[%clk 0:00:14.9]} 23... Qxh2 {[%clk
0:00:52.6]} 24. Qg4+ {[%clk 0:00:14.8]} 24... Kb8 {[%clk 0:00:52.7]} 25. a5
{[%clk 0:00:13.8]} 25... Nb3 {[%clk 0:00:52.9]} 26. Rf2 {[%clk 0:00:08.2]} 26...
Qg1+ {[%clk 0:00:29.5]} 27. Rf1 {[%clk 0:00:07.7]} 27... Qh2 {[%clk 0:00:27.2]}
28. Rf2 {[%clk 0:00:08.2]} 28... Qh6 {[%clk 0:00:23.1]} 29. axb6 {[%clk
0:00:07.1]} 29... axb6 {[%clk 0:00:24]} 30. Rc2 {[%clk 0:00:03.7]} 30... Rhe8
{[%clk 0:00:19.8]} 31. Kd1 {[%clk 0:00:02.8]} 31... Nxd2 {[%clk 0:00:19.2]} 32.
Rcxd2 {[%clk 0:00:03]} 32... Qxe3 {[%clk 0:00:19]} 33. Qxg7 {[%clk 0:00:03.1]}
33... Rg8 {[%clk 0:00:17.2]} 34. Qc3 {[%clk 0:00:02.5]} 34... Qxg3 {[%clk
0:00:17.1]} 35. Kc2 {[%clk 0:00:02.1]} 35... Rd6 {[%clk 0:00:15.6]} 36. Kb2
{[%clk 0:00:01.9]} 36... Rc6 {[%clk 0:00:15.7]} 37. Qb3 {[%clk 0:00:01.9]} 37...
Qd6 {[%clk 0:00:15.5]} 38. Rfe2 {[%clk 0:00:01.8]} 38... Rc5 {[%clk 0:00:15.5]}
39. Bc2 {[%clk 0:00:01.5]} 39... Qf6+ {[%clk 0:00:15.6]} 40. Kb1 {[%clk
0:00:00.9]} 40... Rd8 {[%clk 0:00:16]} 41. Bd1 {[%clk 0:00:01.3]} 41... Ra5
{[%clk 0:00:16]} 42. Qb2 {[%clk 0:00:00.8]} 42... Qxb2+ {[%clk 0:00:15.3]} 43.
Kxb2 {[%clk 0:00:01.7]} 43... d4 {[%clk 0:00:15.7]} 44. Rd3 {[%clk 0:00:01.9]}
44... c5 {[%clk 0:00:15.8]} 45. Rc2 {[%clk 0:00:02.4]} 45... Kc7 {[%clk
0:00:14.3]} 46. Rh3 {[%clk 0:00:02]} 46... Rd7 {[%clk 0:00:14.6]} 47. Bg4 {[%clk
0:00:02.1]} 47... Re7 {[%clk 0:00:14.3]} 48. Bf5 {[%clk 0:00:02]} 48... Ra8
{[%clk 0:00:14]} 49. Rxh7 {[%clk 0:00:01.2]} 49... Rxh7 {[%clk 0:00:13.5]} 50.
Bxh7 {[%clk 0:00:02.1]} 50... Re8 {[%clk 0:00:13.6]} 51. Bd3 {[%clk 0:00:02]}
51... Kc6 {[%clk 0:00:14]} 52. Kc1 {[%clk 0:00:01.6]} 52... b5 {[%clk
0:00:13.8]} 53. Rb2 {[%clk 0:00:01.6]} 53... c4 {[%clk 0:00:13.6]} 54. Be2
{[%clk 0:00:01.5]} 54... Kc5 {[%clk 0:00:13.3]} 55. Bf3 {[%clk 0:00:01.5]} 55...
b6 {[%clk 0:00:13.7]} 56. Rh2 {[%clk 0:00:01.6]} 56... d3 {[%clk 0:00:14.2]} 57.
Rh5+ {[%clk 0:00:02.2]} 57... Kb4 {[%clk 0:00:14.2]} 58. Bc6 {[%clk 0:00:01.9]}
58... Kc3 {[%clk 0:00:13.8]} 59. Kd1 {[%clk 0:00:02.4]} 59... Rg8 {[%clk
0:00:12.3]} 60. Rh1 {[%clk 0:00:01.6]} 60... b4 {[%clk 0:00:12.4]} 61. Bd5
{[%clk 0:00:01.3]} 61... Rg4 {[%clk 0:00:11.6]} 62. Bf3 {[%clk 0:00:01.5]} 62...
Rf4 {[%clk 0:00:11.2]} 63. Bd5 {[%clk 0:00:01.8]} 63... b3 {[%clk 0:00:11.7]}
64. Bg2 {[%clk 0:00:01.9]} 64... b5 {[%clk 0:00:11.7]} 65. Rh2 {[%clk
0:00:00.4]} 65... b2 {[%clk 0:00:11.9]} 0-1

[Event "Early-Titled-Tuesday-Blitz-May-14-2024"]
[Site "Chess.com"]
[Date "2024.05.14"]
[Round "10"]
[White "ChessBliss09"]
[Black "sterpfi"]
[Result "1-0"]
[WhiteElo "2249"]
[BlackElo "2296"]
[TimeControl "180+1"]
[EndTime "9:58:54 PDT"]
[Termination "ChessBliss09 won on time"]

1. c4 {[%clk 0:03:00.9]} 1... e6 {[%clk 0:02:59.7]} 2. Nc3 {[%clk 0:02:59.4]}
2... d5 {[%clk 0:03:00.6]} 3. d4 {[%clk 0:02:58]} 3... Nf6 {[%clk 0:03:00.2]} 4.
cxd5 {[%clk 0:02:57.7]} 4... exd5 {[%clk 0:03:01.1]} 5. Bg5 {[%clk 0:02:57.5]}
5... c6 {[%clk 0:03:01.6]} 6. e3 {[%clk 0:02:57.7]} 6... h6 {[%clk 0:03:01.2]}
7. Bh4 {[%clk 0:02:57.2]} 7... Be7 {[%clk 0:03:01.7]} 8. Qc2 {[%clk 0:02:57.2]}
8... O-O {[%clk 0:03:01.9]} 9. Bd3 {[%clk 0:02:57.5]} 9... Re8 {[%clk
0:03:01.7]} 10. Nge2 {[%clk 0:02:57.8]} 10... Nbd7 {[%clk 0:02:58.8]} 11. O-O
{[%clk 0:02:57.9]} 11... a5 {[%clk 0:02:57.9]} 12. f3 {[%clk 0:02:55]} 12... b5
{[%clk 0:02:57.1]} 13. e4 {[%clk 0:02:54.5]} 13... b4 {[%clk 0:02:43.3]} 14. Nd1
{[%clk 0:02:49.9]} 14... dxe4 {[%clk 0:02:41.9]} 15. fxe4 {[%clk 0:02:46.6]}
15... c5 {[%clk 0:02:42.2]} 16. e5 {[%clk 0:02:34.2]} 16... Nd5 {[%clk
0:02:39.7]} 17. Bxe7 {[%clk 0:02:31.6]} 17... Qxe7 {[%clk 0:02:40.2]} 18. Be4
{[%clk 0:02:28.2]} 18... Bb7 {[%clk 0:02:34.6]} 19. Qc4 {[%clk 0:02:14.8]} 19...
N5b6 {[%clk 0:02:20.3]} 20. Qd3 {[%clk 0:02:06.6]} 20... Bxe4 {[%clk 0:02:20.3]}
21. Qxe4 {[%clk 0:02:07.5]} 21... cxd4 {[%clk 0:02:20.7]} 22. Nxd4 {[%clk
0:02:03.8]} 22... Qxe5 {[%clk 0:02:17.2]} 23. Qh4 {[%clk 0:01:45]} 23... Qe4
{[%clk 0:01:59.5]} 24. Qxe4 {[%clk 0:01:29.2]} 24... Rxe4 {[%clk 0:02:00.4]} 25.
Nf5 {[%clk 0:01:28.8]} 25... Nc4 {[%clk 0:01:44.9]} 26. Nf2 {[%clk 0:01:18.7]}
26... Re5 {[%clk 0:01:36]} 27. Nd3 {[%clk 0:01:12.4]} 27... Re2 {[%clk
0:01:17.6]} 28. Rac1 {[%clk 0:00:48.4]} 28... Nxb2 {[%clk 0:00:56.3]} 29. Nf4
{[%clk 0:00:33.7]} 29... Re5 {[%clk 0:00:44.5]} 30. Nd6 {[%clk 0:00:21.5]} 30...
Nc5 {[%clk 0:00:32.8]} 31. Nxf7 {[%clk 0:00:14.3]} 31... Rf5 {[%clk 0:00:14.6]}
32. Nd6 {[%clk 0:00:12.3]} 32... Rf6 {[%clk 0:00:15]} 33. Rxc5 {[%clk
0:00:07.3]} 33... Rxd6 {[%clk 0:00:14.9]} 34. Rc2 {[%clk 0:00:07.3]} 34... Nd3
{[%clk 0:00:14.5]} 35. Rd2 {[%clk 0:00:07.4]} 35... Rad8 {[%clk 0:00:14]} 36.
Rfd1 {[%clk 0:00:07.1]} 36... Nxf4 {[%clk 0:00:09.1]} 37. Rxd6 {[%clk
0:00:06.7]} 37... Rf8 {[%clk 0:00:09.2]} 38. Ra6 {[%clk 0:00:05.4]} 38... Ne2+
{[%clk 0:00:09.3]} 39. Kh1 {[%clk 0:00:05.7]} 39... Nc3 {[%clk 0:00:09.6]} 40.
Re1 {[%clk 0:00:02.8]} 40... a4 {[%clk 0:00:09.3]} 41. Rb6 {[%clk 0:00:02.2]}
41... Rf2 {[%clk 0:00:08.6]} 42. Kg1 {[%clk 0:00:01.8]} 42... Rxa2 {[%clk
0:00:08.3]} 43. Rxb4 {[%clk 0:00:02.1]} 43... a3 {[%clk 0:00:08.2]} 44. Rc4
{[%clk 0:00:01.9]} 44... Rc2 {[%clk 0:00:07.8]} 45. Rc8+ {[%clk 0:00:02.8]}
45... Kh7 {[%clk 0:00:07.6]} 46. Ra1 {[%clk 0:00:03.1]} 46... a2 {[%clk
0:00:08.1]} 47. h3 {[%clk 0:00:03]} 47... Rb2 {[%clk 0:00:07.2]} 48. Rxc3 {[%clk
0:00:03]} 48... Rb1+ {[%clk 0:00:07.4]} 49. Rc1 {[%clk 0:00:01.6]} 49... Rb2
{[%clk 0:00:01.9]} 50. Rd1 {[%clk 0:00:01.4]} 50... Rc2 {[%clk 0:00:02]} 51. Rf1
{[%clk 0:00:02.3]} 51... Re2 {[%clk 0:00:02.1]} 52. Kh1 {[%clk 0:00:03.2]} 52...
Rb2 {[%clk 0:00:02.2]} 53. Rfe1 {[%clk 0:00:03.7]} 53... Kg6 {[%clk 0:00:01.7]}
54. Kh2 {[%clk 0:00:04.6]} 54... Kh7 {[%clk 0:00:02]} 55. Kg3 {[%clk 0:00:05.5]}
55... Kg6 {[%clk 0:00:02.6]} 56. Kf3 {[%clk 0:00:06.4]} 56... Kh7 {[%clk
0:00:03.2]} 57. Ke3 {[%clk 0:00:07]} 57... Rxg2 {[%clk 0:00:02.8]} 58. Kd3
{[%clk 0:00:06.9]} 58... Rg3+ {[%clk 0:00:02.3]} 59. Kc2 {[%clk 0:00:06.7]}
59... Rxh3 {[%clk 0:00:02.5]} 60. Rxa2 {[%clk 0:00:06.8]} 60... Rh2+ {[%clk
0:00:03.1]} 61. Kb3 {[%clk 0:00:07.4]} 61... Rh3+ {[%clk 0:00:03.1]} 62. Kb2
{[%clk 0:00:07.1]} 62... Rf3 {[%clk 0:00:02.6]} 63. Kb1 {[%clk 0:00:06.4]} 63...
g5 {[%clk 0:00:02.7]} 64. Rae2 {[%clk 0:00:06.5]} 64... Kg6 {[%clk 0:00:02.5]}
65. Re6+ {[%clk 0:00:06.2]} 65... Kf5 {[%clk 0:00:00.1]} 66. Rxh6 {[%clk
0:00:05.5]} 66... g4 {[%clk 0:00:00.4]} 67. Rh8 {[%clk 0:00:05]} 67... Kf4
{[%clk 0:00:00.7]} 68. Rf8+ {[%clk 0:00:04.4]} 1-0

[Event "Early-Titled-Tuesday-Blitz-May-14-2024"]
[Site "Chess.com"]
[Date "2024.05.14"]
[Round "10"]
[White "Iskusnyh"]
[Black "KnightDuta"]
[Result "1-0"]
[WhiteElo "2610"]
[BlackElo "2729"]
[TimeControl "180+1"]
[EndTime "9:58:55 PDT"]
[Termination "Iskusnyh won on time"]

1. d4 {[%clk 0:03:00.8]} 1... c5 {[%clk 0:02:58.2]} 2. d5 {[%clk 0:03:00.3]}
2... e5 {[%clk 0:02:58.7]} 3. e4 {[%clk 0:03:00.2]} 3... d6 {[%clk 0:02:59.4]}
4. Bb5+ {[%clk 0:02:58.5]} 4... Bd7 {[%clk 0:02:59.3]} 5. a4 {[%clk 0:02:53.4]}
5... Be7 {[%clk 0:02:59.5]} 6. Nf3 {[%clk 0:02:52.7]} 6... a6 {[%clk 0:02:57]}
7. Be2 {[%clk 0:02:51]} 7... Bg4 {[%clk 0:02:56.1]} 8. Nfd2 {[%clk 0:02:48.4]}
8... Bxe2 {[%clk 0:02:55.8]} 9. Qxe2 {[%clk 0:02:48.6]} 9... Nd7 {[%clk
0:02:56]} 10. Nc3 {[%clk 0:02:45.1]} 10... Ngf6 {[%clk 0:02:49.1]} 11. O-O
{[%clk 0:02:43.9]} 11... O-O {[%clk 0:02:49.4]} 12. a5 {[%clk 0:02:39.9]} 12...
Ne8 {[%clk 0:02:47.7]} 13. Nc4 {[%clk 0:02:21.5]} 13... Bg5 {[%clk 0:02:47.3]}
14. Na4 {[%clk 0:02:02.2]} 14... Bxc1 {[%clk 0:02:45.1]} 15. Raxc1 {[%clk
0:02:03.1]} 15... Qg5 {[%clk 0:02:22]} 16. Nab6 {[%clk 0:01:39.8]} 16... Rd8
{[%clk 0:02:18.6]} 17. c3 {[%clk 0:01:37.9]} 17... f5 {[%clk 0:02:17.1]} 18. b4
{[%clk 0:01:34.4]} 18... cxb4 {[%clk 0:02:06.3]} 19. cxb4 {[%clk 0:01:32]} 19...
fxe4 {[%clk 0:02:06.5]} 20. Nxd7 {[%clk 0:01:24.5]} 20... Rxd7 {[%clk
0:02:07.4]} 21. Qxe4 {[%clk 0:01:25]} 21... Rf4 {[%clk 0:02:06.5]} 22. Qe2
{[%clk 0:01:22.3]} 22... Rc7 {[%clk 0:01:46.5]} 23. g3 {[%clk 0:01:12.5]} 23...
Rd4 {[%clk 0:01:46.3]} 24. Ne3 {[%clk 0:01:08.8]} 24... Rxc1 {[%clk 0:01:41.4]}
25. Rxc1 {[%clk 0:01:09.7]} 25... Rxb4 {[%clk 0:01:24.6]} 26. Rc8 {[%clk
0:01:07.1]} 26... Qg6 {[%clk 0:01:25.2]} 27. h4 {[%clk 0:00:55.3]} 27... h5
{[%clk 0:01:19.6]} 28. Qf3 {[%clk 0:00:46.2]} 28... Kh7 {[%clk 0:01:13.6]} 29.
Qf8 {[%clk 0:00:37.5]} 29... Rb1+ {[%clk 0:01:05.8]} 30. Kh2 {[%clk 0:00:37.3]}
30... Qe4 {[%clk 0:01:00]} 31. Qf5+ {[%clk 0:00:35]} 31... Qxf5 {[%clk
0:00:59.4]} 32. Nxf5 {[%clk 0:00:35.9]} 32... Rb2 {[%clk 0:00:37.5]} 33. Kg1
{[%clk 0:00:34.2]} 33... Nf6 {[%clk 0:00:37.6]} 34. Nxd6 {[%clk 0:00:33.4]}
34... Nxd5 {[%clk 0:00:36.1]} 35. Ne4 {[%clk 0:00:32.1]} 35... Nf6 {[%clk
0:00:31.3]} 36. Ng5+ {[%clk 0:00:31.6]} 36... Kg6 {[%clk 0:00:31.9]} 37. Rc7
{[%clk 0:00:31.8]} 37... Ng4 {[%clk 0:00:28.5]} 38. Ne4 {[%clk 0:00:28.6]} 38...
Rb4 {[%clk 0:00:24.8]} 39. Nd6 {[%clk 0:00:25.3]} 39... Rb1+ {[%clk 0:00:25.2]}
40. Kg2 {[%clk 0:00:24.2]} 40... Rb2 {[%clk 0:00:26.1]} 41. Ne4 {[%clk
0:00:24.4]} 41... Kf5 {[%clk 0:00:24.2]} 42. Rxb7 {[%clk 0:00:22.2]} 42... Rxb7
{[%clk 0:00:16.4]} 43. Nd6+ {[%clk 0:00:22.3]} 43... Ke6 {[%clk 0:00:17.3]} 44.
Nxb7 {[%clk 0:00:21.1]} 44... Kd5 {[%clk 0:00:18.2]} 45. Nd8 {[%clk 0:00:20.6]}
45... Kc5 {[%clk 0:00:18]} 46. Ne6+ {[%clk 0:00:20.2]} 46... Kb5 {[%clk
0:00:18.7]} 47. Nxg7 {[%clk 0:00:21.1]} 47... Kxa5 {[%clk 0:00:19.5]} 48. Nxh5
{[%clk 0:00:21.4]} 48... Kb4 {[%clk 0:00:20.3]} 49. f3 {[%clk 0:00:21.2]} 49...
Nh6 {[%clk 0:00:16.7]} 50. g4 {[%clk 0:00:20.4]} 50... a5 {[%clk 0:00:17.3]} 51.
g5 {[%clk 0:00:20.9]} 51... Nf5 {[%clk 0:00:17.8]} 52. Ng3 {[%clk 0:00:19.1]}
52... Nxh4+ {[%clk 0:00:17]} 53. Kh3 {[%clk 0:00:18.6]} 53... Nxf3 {[%clk
0:00:14.7]} 54. g6 {[%clk 0:00:17.9]} 54... Ng5+ {[%clk 0:00:14.9]} 55. Kg4
{[%clk 0:00:17.9]} 55... Ne6 {[%clk 0:00:15.8]} 56. Kf5 {[%clk 0:00:18.1]} 56...
Ng7+ {[%clk 0:00:10.9]} 57. Kf6 {[%clk 0:00:18.3]} 57... Ne8+ {[%clk 0:00:01.5]}
58. Ke7 {[%clk 0:00:17]} 58... Nd6 {[%clk 0:00:02.2]} 59. Kxd6 {[%clk
0:00:16.5]} 59... a4 {[%clk 0:00:02.5]} 60. g7 {[%clk 0:00:16.9]} 60... a3
{[%clk 0:00:03.1]} 61. g8=Q {[%clk 0:00:16.3]} 61... a2 {[%clk 0:00:02.5]} 62.
Qb8+ {[%clk 0:00:16.7]} 62... Kc4 {[%clk 0:00:00.1]} 63. Qa7 {[%clk 0:00:16.4]}
1-0

[Event "Early-Titled-Tuesday-Blitz-May-14-2024"]
[Site "Chess.com"]
[Date "2024.05.14"]
[Round "10"]
[White "Abund"]
[Black "ImportedItalianMaple"]
[Result "1-0"]
[WhiteElo "2792"]
[BlackElo "2589"]
[TimeControl "180+1"]
[EndTime "9:59:06 PDT"]
[Termination "Abund won on time"]

1. Nf3 {[%clk 0:03:00.9]} 1... g6 {[%clk 0:02:57.3]} 2. b3 {[%clk 0:02:57.9]}
2... Bg7 {[%clk 0:02:57.4]} 3. d4 {[%clk 0:02:58.3]} 3... c5 {[%clk 0:02:56.3]}
4. e3 {[%clk 0:02:55.4]} 4... cxd4 {[%clk 0:02:49.9]} 5. exd4 {[%clk 0:02:51]}
5... Nf6 {[%clk 0:02:50.5]} 6. Bb2 {[%clk 0:02:50.9]} 6... d5 {[%clk 0:02:48.8]}
7. Bd3 {[%clk 0:02:48.8]} 7... O-O {[%clk 0:02:47.7]} 8. Nbd2 {[%clk 0:02:48.6]}
8... Nc6 {[%clk 0:02:47.6]} 9. a3 {[%clk 0:02:45]} 9... Bf5 {[%clk 0:02:39.4]}
10. Bxf5 {[%clk 0:02:41.6]} 10... gxf5 {[%clk 0:02:40.3]} 11. O-O {[%clk
0:02:41]} 11... e6 {[%clk 0:02:34.3]} 12. Qe2 {[%clk 0:02:30.5]} 12... Ne4
{[%clk 0:02:31.3]} 13. Rfd1 {[%clk 0:02:29.7]} 13... Rc8 {[%clk 0:02:29.2]} 14.
c4 {[%clk 0:02:20.5]} 14... dxc4 {[%clk 0:01:21.8]} 15. bxc4 {[%clk 0:01:33]}
15... Nxd2 {[%clk 0:01:04.1]} 16. Rxd2 {[%clk 0:01:33.4]} 16... Na5 {[%clk
0:01:02]} 17. Rc2 {[%clk 0:01:33.7]} 17... Qb6 {[%clk 0:00:37.6]} 18. Rac1
{[%clk 0:01:17.6]} 18... Rfd8 {[%clk 0:00:28.7]} 19. d5 {[%clk 0:01:03.1]} 19...
exd5 {[%clk 0:00:19]} 20. Bxg7 {[%clk 0:01:02.1]} 20... Kxg7 {[%clk 0:00:19.2]}
21. cxd5 {[%clk 0:00:39.3]} 21... Rxc2 {[%clk 0:00:19.7]} 22. Qxc2 {[%clk
0:00:38.6]} 22... Rxd5 {[%clk 0:00:18]} 23. h3 {[%clk 0:00:33.9]} 23... Qf6
{[%clk 0:00:13.4]} 24. Qc7 {[%clk 0:00:29.6]} 24... Nb3 {[%clk 0:00:09.6]} 25.
Qxb7 {[%clk 0:00:20]} 25... Nxc1 {[%clk 0:00:04]} 26. Qxd5 {[%clk 0:00:20.3]}
26... Ne2+ {[%clk 0:00:02.9]} 27. Kh2 {[%clk 0:00:20.8]} 27... Nf4 {[%clk
0:00:03.6]} 28. Qc4 {[%clk 0:00:16.2]} 28... Ng6 {[%clk 0:00:03.5]} 29. Qc5
{[%clk 0:00:15]} 29... a6 {[%clk 0:00:02.2]} 30. Nd4 {[%clk 0:00:14.7]} 30...
Qe5+ {[%clk 0:00:01.9]} 31. Qxe5+ {[%clk 0:00:14.8]} 31... Nxe5 {[%clk
0:00:02.8]} 32. Nxf5+ {[%clk 0:00:15.4]} 32... Kf6 {[%clk 0:00:03.7]} 33. Nd4
{[%clk 0:00:13.4]} 33... Nc4 {[%clk 0:00:03.9]} 34. Nc2 {[%clk 0:00:12.1]} 34...
Ke5 {[%clk 0:00:03.7]} 35. f3 {[%clk 0:00:12.4]} 35... Kd5 {[%clk 0:00:04]} 36.
Kg3 {[%clk 0:00:12.4]} 36... Kc5 {[%clk 0:00:04.1]} 37. Kf4 {[%clk 0:00:12.3]}
37... Kb5 {[%clk 0:00:04.7]} 38. Nb4 {[%clk 0:00:09]} 38... Nxa3 {[%clk
0:00:04.4]} 39. Nd3 {[%clk 0:00:07.4]} 39... a5 {[%clk 0:00:04.5]} 40. Kf5
{[%clk 0:00:06.5]} 40... Kc4 {[%clk 0:00:05.1]} 41. Ne5+ {[%clk 0:00:05.7]}
41... Kb3 {[%clk 0:00:04.5]} 42. Kf6 {[%clk 0:00:02.9]} 42... Nc4 {[%clk
0:00:05]} 43. Nd3 {[%clk 0:00:02.2]} 43... Nd6 {[%clk 0:00:03.6]} 44. Ke7 {[%clk
0:00:02.2]} 44... Nf5+ {[%clk 0:00:03.3]} 45. Kxf7 {[%clk 0:00:02.4]} 45... Nh4
{[%clk 0:00:04.2]} 46. g4 {[%clk 0:00:02.6]} 46... Nxf3 {[%clk 0:00:04.7]} 47.
Kg7 {[%clk 0:00:03.3]} 47... Ng1 {[%clk 0:00:02.4]} 48. h4 {[%clk 0:00:03.5]}
48... Nf3 {[%clk 0:00:03.2]} 49. h5 {[%clk 0:00:03.9]} 49... Nh2 {[%clk
0:00:02.9]} 50. g5 {[%clk 0:00:04.4]} 50... Nf3 {[%clk 0:00:03.5]} 51. g6 {[%clk
0:00:04.4]} 51... hxg6 {[%clk 0:00:03.6]} 52. h6 {[%clk 0:00:05]} 52... Ng5
{[%clk 0:00:03.8]} 53. Kxg6 {[%clk 0:00:05.6]} 53... Ne6 {[%clk 0:00:04.4]} 54.
Kf6 {[%clk 0:00:05]} 54... Nf8 {[%clk 0:00:04.7]} 55. Kg7 {[%clk 0:00:05.5]}
55... Ne6+ {[%clk 0:00:04.9]} 56. Kf7 {[%clk 0:00:06.1]} 56... Ng5+ {[%clk
0:00:05.1]} 57. Kg6 {[%clk 0:00:06.7]} 57... Ne6 {[%clk 0:00:05.7]} 58. Nc5+
{[%clk 0:00:06.7]} 58... Nxc5 {[%clk 0:00:04.4]} 59. h7 {[%clk 0:00:07.4]} 59...
a4 {[%clk 0:00:04.9]} 60. h8=Q {[%clk 0:00:07.9]} 60... a3 {[%clk 0:00:05.8]}
61. Qh3+ {[%clk 0:00:05.3]} 61... Kb2 {[%clk 0:00:05.9]} 62. Qg2+ {[%clk
0:00:05.6]} 62... Kc3 {[%clk 0:00:05.5]} 63. Qc6 {[%clk 0:00:04.6]} 63... Kb4
{[%clk 0:00:05.4]} 64. Qb6+ {[%clk 0:00:04.9]} 64... Kc4 {[%clk 0:00:06]} 65.
Qa5 {[%clk 0:00:04.8]} 65... Kb3 {[%clk 0:00:04.6]} 66. Qxc5 {[%clk 0:00:04.4]}
66... a2 {[%clk 0:00:05.5]} 67. Qe5 {[%clk 0:00:05]} 1-0

[Event "Early-Titled-Tuesday-Blitz-May-14-2024"]
[Site "Chess.com"]
[Date "2024.05.14"]
[Round "10"]
[White "Knightmare1014"]
[Black "Guldona_2007"]
[Result "0-1"]
[WhiteElo "2253"]
[BlackElo "2202"]
[TimeControl "180+1"]
[EndTime "9:59:09 PDT"]
[Termination "Guldona_2007 won on time"]

1. e4 {[%clk 0:03:00.9]} 1... c5 {[%clk 0:02:59.6]} 2. Nf3 {[%clk 0:03:00.2]}
2... Nc6 {[%clk 0:02:59.4]} 3. d4 {[%clk 0:02:59.9]} 3... cxd4 {[%clk
0:02:59.8]} 4. Nxd4 {[%clk 0:03:00.8]} 4... Nf6 {[%clk 0:03:00.1]} 5. Nc3 {[%clk
0:02:59.4]} 5... d6 {[%clk 0:03:00.5]} 6. Be2 {[%clk 0:02:56.4]} 6... e5 {[%clk
0:02:58.4]} 7. Nb3 {[%clk 0:02:47.8]} 7... Be6 {[%clk 0:02:55.5]} 8. O-O {[%clk
0:02:46.3]} 8... d5 {[%clk 0:02:53.2]} 9. exd5 {[%clk 0:02:44.2]} 9... Nxd5
{[%clk 0:02:52.3]} 10. Nxd5 {[%clk 0:02:41.4]} 10... Qxd5 {[%clk 0:02:51.9]} 11.
c3 {[%clk 0:02:22.7]} 11... Qxd1 {[%clk 0:02:44.1]} 12. Rxd1 {[%clk 0:02:22.6]}
12... a6 {[%clk 0:02:43.1]} 13. Be3 {[%clk 0:02:21.6]} 13... f5 {[%clk 0:02:37]}
14. Bb6 {[%clk 0:01:47.4]} 14... Be7 {[%clk 0:02:19.5]} 15. Nc5 {[%clk
0:01:47.3]} 15... Bxc5 {[%clk 0:02:17.1]} 16. Bxc5 {[%clk 0:01:47.2]} 16... Kf7
{[%clk 0:02:17.3]} 17. Rd6 {[%clk 0:01:42.4]} 17... Rhd8 {[%clk 0:02:13.5]} 18.
Rad1 {[%clk 0:01:42]} 18... Rxd6 {[%clk 0:02:13.3]} 19. Rxd6 {[%clk 0:01:41.6]}
19... Rd8 {[%clk 0:02:12.5]} 20. Rxd8 {[%clk 0:01:41.7]} 20... Nxd8 {[%clk
0:02:12]} 21. b3 {[%clk 0:01:38.2]} 21... Nc6 {[%clk 0:02:10.7]} 22. h3 {[%clk
0:01:35.3]} 22... g6 {[%clk 0:01:58.9]} 23. Kf1 {[%clk 0:01:32.6]} 23... Bd5
{[%clk 0:01:57.5]} 24. g3 {[%clk 0:01:28.1]} 24... Kf6 {[%clk 0:01:55.8]} 25.
Ke1 {[%clk 0:01:26.5]} 25... Bg2 {[%clk 0:01:52.9]} 26. h4 {[%clk 0:01:26.6]}
26... Bd5 {[%clk 0:01:51.1]} 27. Kd2 {[%clk 0:01:18.4]} 27... Nd8 {[%clk
0:01:48.8]} 28. Be3 {[%clk 0:01:09.9]} 28... Ne6 {[%clk 0:01:47.6]} 29. c4
{[%clk 0:00:59.1]} 29... Bc6 {[%clk 0:01:46.7]} 30. b4 {[%clk 0:00:55.1]} 30...
Ke7 {[%clk 0:01:38.4]} 31. Kc3 {[%clk 0:00:51.6]} 31... Kd6 {[%clk 0:01:36.8]}
32. c5+ {[%clk 0:00:48.8]} 32... Ke7 {[%clk 0:01:32.4]} 33. Bd1 {[%clk
0:00:44.1]} 33... Nc7 {[%clk 0:01:30.6]} 34. Bg5+ {[%clk 0:00:38.4]} 34... Ke6
{[%clk 0:01:20.2]} 35. Bb3+ {[%clk 0:00:31.3]} 35... Nd5+ {[%clk 0:01:18]} 36.
Kd3 {[%clk 0:00:20.6]} 36... Kd7 {[%clk 0:01:13.9]} 37. Bc4 {[%clk 0:00:19.1]}
37... Nxb4+ {[%clk 0:01:09.3]} 38. Kc3 {[%clk 0:00:19.2]} 38... Nd5+ {[%clk
0:01:08.5]} 39. Kd3 {[%clk 0:00:18.4]} 39... Bb5 {[%clk 0:01:00.6]} 40. Bxb5+
{[%clk 0:00:17.4]} 40... axb5 {[%clk 0:01:00.1]} 41. f4 {[%clk 0:00:14.5]} 41...
Ke6 {[%clk 0:00:45.6]} 42. fxe5 {[%clk 0:00:14]} 42... Kxe5 {[%clk 0:00:45.5]}
43. Bd8 {[%clk 0:00:12.7]} 43... Nb4+ {[%clk 0:00:43]} 44. Kc3 {[%clk
0:00:12.9]} 44... Nxa2+ {[%clk 0:00:33.7]} 45. Kb3 {[%clk 0:00:12]} 45... Nc1+
{[%clk 0:00:31.3]} 46. Kc2 {[%clk 0:00:12]} 46... Ne2 {[%clk 0:00:29.8]} 47. Kd3
{[%clk 0:00:12.3]} 47... Nd4 {[%clk 0:00:18.6]} 48. Bc7+ {[%clk 0:00:11.2]}
48... Kd5 {[%clk 0:00:18]} 49. Bd6 {[%clk 0:00:11.6]} 49... Ne6 {[%clk
0:00:16.5]} 50. Kc3 {[%clk 0:00:09.5]} 50... Nxc5 {[%clk 0:00:16.4]} 51. Bf8
{[%clk 0:00:09.6]} 51... Na6 {[%clk 0:00:16]} 52. Kb3 {[%clk 0:00:09.5]} 52...
Ke4 {[%clk 0:00:14.6]} 53. Bd6 {[%clk 0:00:08.7]} 53... h6 {[%clk 0:00:13.1]}
54. Kc3 {[%clk 0:00:07.6]} 54... g5 {[%clk 0:00:12.1]} 55. hxg5 {[%clk
0:00:07.4]} 55... hxg5 {[%clk 0:00:12.1]} 56. Kd2 {[%clk 0:00:06.6]} 56... f4
{[%clk 0:00:11.3]} 57. gxf4 {[%clk 0:00:06.1]} 57... gxf4 {[%clk 0:00:11.4]} 58.
Ke2 {[%clk 0:00:06.4]} 58... b4 {[%clk 0:00:11.1]} 59. Kd2 {[%clk 0:00:04]}
59... f3 {[%clk 0:00:10.5]} 60. Bg3 {[%clk 0:00:02.1]} 60... Nc5 {[%clk
0:00:09]} 61. Bf2 {[%clk 0:00:01.2]} 61... b6 {[%clk 0:00:08.8]} 62. Kc2 {[%clk
0:00:00.5]} 62... Nd3 {[%clk 0:00:07.5]} 0-1